[Event "Titled Tuesday Blitz April 12 Late 2022"]
[White "Yedidia, Daniel"]
[Black "Sernecki, Franciszek"]
[WhiteFideId "30905907"]
[BlackFideId "1169297"]
[WhiteElo "2609"]
[BlackElo "2165"]
[Result "0-1"]
[Round "05"]
[TimeControl "180+1"]
[Date "2022.04.13"]
[WhiteClock "0:00:03"]
[BlackClock "0:00:03"]

1. d4 {[%clk 0:03:00]}  Nf6 {[%clk 0:02:59]} 2. c4 {[%clk 0:03:00]}  e6 {[%clk 0:02:59]} 3. Nc3 {[%clk 0:03:01]}  Bb4 {[%clk 0:03:00]} 4. e3 {[%clk 0:03:01]}  c5 {[%clk 0:02:39]} 5. Ne2 {[%clk 0:02:55]}  O-O {[%clk 0:02:30]} 6. g3 {[%clk 0:02:55]}  d5 {[%clk 0:02:24]} 7. cxd5 {[%clk 0:02:53]}  cxd4 {[%clk 0:02:20]} 8. Qxd4 {[%clk 0:02:51]}  Nxd5 {[%clk 0:02:19]} 9. Bg2 {[%clk 0:02:47]}  Nc6 {[%clk 0:02:19]} 10. Qc4 {[%clk 0:02:32]}  Ne5 {[%clk 0:02:01]} 11. Qe4 {[%clk 0:02:26]}  Nxc3 {[%clk 0:01:36]} 12. Nxc3 {[%clk 0:02:19]}  Nd3+ {[%clk 0:01:32]} 13. Ke2 {[%clk 0:02:12]}  Nxc1+ {[%clk 0:01:29]} 14. Raxc1 {[%clk 0:02:10]}  Qa5 {[%clk 0:01:27]} 15. a3 {[%clk 0:02:07]}  Be7 {[%clk 0:01:22]} 16. Rhd1 {[%clk 0:02:06]}  b6 {[%clk 0:01:22]} 17. Kf1 {[%clk 0:01:58]}  Ba6+ {[%clk 0:01:22]} 18. Kg1 {[%clk 0:01:58]}  Rad8 {[%clk 0:01:15]} 19. h3 {[%clk 0:01:53]}  h6 {[%clk 0:01:14]} 20. Kh2 {[%clk 0:01:45]}  Bf6 {[%clk 0:01:14]} 21. Qc2 {[%clk 0:01:38]}  Qc5 {[%clk 0:00:57]} 22. Rxd8 {[%clk 0:01:25]}  Rxd8 {[%clk 0:00:56]} 23. Ne4 {[%clk 0:01:21]}  Qe5 {[%clk 0:00:44]} 24. Nxf6+ {[%clk 0:00:59]}  Qxf6 {[%clk 0:00:43]} 25. b4 {[%clk 0:00:52]}  g6 {[%clk 0:00:34]} 26. a4 {[%clk 0:00:40]}  Bd3 {[%clk 0:00:32]} 27. Qc7 {[%clk 0:00:36]}  Kg7 {[%clk 0:00:28]} 28. Kg1 {[%clk 0:00:27]}  Be2 {[%clk 0:00:25]} 29. Qxa7 {[%clk 0:00:25]}  Rd2 {[%clk 0:00:19]} 30. Qxb6 {[%clk 0:00:18]}  Bd1 {[%clk 0:00:13]} 31. e4 {[%clk 0:00:15]}  Bxa4 {[%clk 0:00:11]} 32. Qe3 {[%clk 0:00:14]}  Rb2 {[%clk 0:00:10]} 33. e5 {[%clk 0:00:14]}  Qe7 {[%clk 0:00:09]} 34. Rc4 {[%clk 0:00:05]}  Rxb4 {[%clk 0:00:08]} 35. Qd4 {[%clk 0:00:05]}  Rxc4 {[%clk 0:00:07]} 36. Qxc4 {[%clk 0:00:05]}  Qd7 {[%clk 0:00:06]} 37. Qf4 {[%clk 0:00:05]}  Bc6 {[%clk 0:00:02]} 38. Qf6+ {[%clk 0:00:05]}  Kg8 {[%clk 0:00:02]} 39. Bf1 {[%clk 0:00:04]}  Be4 {[%clk 0:00:01]} 40. Qf4 {[%clk 0:00:04]}  Bf5 {[%clk 0:00:01]} 41. Qxh6 {[%clk 0:00:04]}  Qd1 {[%clk 0:00:01]} 42. Kg2 {[%clk 0:00:03]}  Be4+ {[%clk 0:00:02]} 43. f3 {[%clk 0:00:03]}  Qxf3+ {[%clk 0:00:02]} 44. Kg1 {[%clk 0:00:02]}  Qxg3+ {[%clk 0:00:02]} 45. Bg2 {[%clk 0:00:03]}  Qxg2# {[%clk 0:00:03]} 0-1


[Site "https://www.chess.com"]

[Event "Titled Tuesday Blitz April 12 Late 2022"]
[White "Zanette, Edgard Vinicius"]
[Black "Ronka, Erik"]
[WhiteFideId "2109263"]
[BlackFideId "505080"]
[WhiteElo "2182"]
[BlackElo "2264"]
[Result "0-1"]
[Round "05"]
[TimeControl "180+1"]
[Date "2022.04.13"]
[WhiteClock "0:00:04"]
[BlackClock "0:00:51"]

1. e4 {[%clk 0:02:36]}  c5 {[%clk 0:02:59]} 2. Nc3 {[%clk 0:02:35]}  Nc6 {[%clk 0:02:58]} 3. f4 {[%clk 0:02:34]}  g6 {[%clk 0:02:58]} 4. Nf3 {[%clk 0:02:34]}  Bg7 {[%clk 0:02:58]} 5. Bb5 {[%clk 0:02:34]}  Nd4 {[%clk 0:02:59]} 6. O-O {[%clk 0:02:34]}  a6 {[%clk 0:02:57]} 7. Bd3 {[%clk 0:02:31]}  d6 {[%clk 0:02:57]} 8. Nxd4 {[%clk 0:02:30]}  cxd4 {[%clk 0:02:58]} 9. Ne2 {[%clk 0:02:30]}  d5 {[%clk 0:02:51]} 10. e5 {[%clk 0:02:25]}  f6 {[%clk 0:02:51]} 11. exf6 {[%clk 0:02:23]}  Bxf6 {[%clk 0:02:50]} 12. f5 {[%clk 0:02:19]}  e5 {[%clk 0:02:21]} 13. fxe6 {[%clk 0:02:09]}  Bxe6 {[%clk 0:02:20]} 14. Nf4 {[%clk 0:02:05]}  Bf7 {[%clk 0:02:20]} 15. Qf3 {[%clk 0:01:58]}  Qd7 {[%clk 0:02:05]} 16. Re1+ {[%clk 0:01:50]}  Kf8 {[%clk 0:02:02]} 17. b3 {[%clk 0:01:45]}  Kg7 {[%clk 0:02:01]} 18. Ba3 {[%clk 0:01:39]}  Ne7 {[%clk 0:01:57]} 19. Rf1 {[%clk 0:01:26]}  Ng8 {[%clk 0:01:14]} 20. Qg3 {[%clk 0:00:25]}  g5 {[%clk 0:01:10]} 21. h4 {[%clk 0:00:08]}  h6 {[%clk 0:01:09]} 22. Rf2 {[%clk 0:00:04]}  Ne7 {[%clk 0:00:51]} 0-1


[Site "https://www.chess.com"]

[Event "Titled Tuesday Blitz April 12 Late 2022"]
[White "Zherebtsova, Alexandra"]
[Black "Prado, Alexandra"]
[WhiteFideId "24129518"]
[BlackFideId "3301346"]
[WhiteElo "2025"]
[BlackElo "1678"]
[Result "1-0"]
[Round "05"]
[TimeControl "180+1"]
[Date "2022.04.13"]
[WhiteClock "0:00:40"]
[BlackClock "0:00:01"]

1. d4 {[%clk 0:02:33]}  Nf6 {[%clk 0:02:59]} 2. Nf3 {[%clk 0:02:33]}  g6 {[%clk 0:02:59]} 3. c4 {[%clk 0:02:33]}  Bg7 {[%clk 0:02:58]} 4. Nc3 {[%clk 0:02:34]}  O-O {[%clk 0:02:56]} 5. e4 {[%clk 0:02:35]}  d6 {[%clk 0:02:57]} 6. h3 {[%clk 0:02:35]}  e5 {[%clk 0:02:54]} 7. d5 {[%clk 0:02:34]}  Nbd7 {[%clk 0:02:41]} 8. Be3 {[%clk 0:02:30]}  Nh5 {[%clk 0:02:19]} 9. Nh2 {[%clk 0:02:07]}  a5 {[%clk 0:01:34]} 10. Be2 {[%clk 0:01:55]}  Nf4 {[%clk 0:01:29]} 11. Bf1 {[%clk 0:01:46]}  Nc5 {[%clk 0:01:20]} 12. g3 {[%clk 0:01:34]}  Nxh3 {[%clk 0:01:16]} 13. Nf3 {[%clk 0:01:30]}  Nxf2 {[%clk 0:00:44]} 14. Bxf2 {[%clk 0:01:25]}  f5 {[%clk 0:00:44]} 15. Nd2 {[%clk 0:01:20]}  f4 {[%clk 0:00:18]} 16. Qe2 {[%clk 0:01:12]}  fxg3 {[%clk 0:00:17]} 17. Bxg3 {[%clk 0:01:12]}  Qf6 {[%clk 0:00:16]} 18. O-O-O {[%clk 0:01:08]}  h5 {[%clk 0:00:14]} 19. Bh4 {[%clk 0:01:01]}  Qf7 {[%clk 0:00:14]} 20. Bh3 {[%clk 0:00:55]}  Bh6 {[%clk 0:00:13]} 21. Rdf1 {[%clk 0:00:50]}  Qg7 {[%clk 0:00:08]} 22. Rxf8+ {[%clk 0:00:49]}  Qxf8 {[%clk 0:00:07]} 23. Rf1 {[%clk 0:00:49]}  Qg7 {[%clk 0:00:06]} 24. Bxc8 {[%clk 0:00:49]}  Rxc8 {[%clk 0:00:06]} 25. Kc2 {[%clk 0:00:48]}  Rf8 {[%clk 0:00:05]} 26. Rg1 {[%clk 0:00:44]}  Rf4 {[%clk 0:00:03]} 27. Bg5 {[%clk 0:00:40]}  Bxg5 {[%clk 0:00:01]} 28. Rxg5 {[%clk 0:00:41]}  Qf6 {[%clk 0:00:01]} 29. Rg2 {[%clk 0:00:40]} 1-0


[Site "https://www.chess.com"]

[Event "Titled Tuesday Blitz April 12 Late 2022"]
[White "Zhigalko, Sergei"]
[Black "Naroditsky, Daniel"]
[WhiteFideId "13502956"]
[BlackFideId "2026961"]
[WhiteElo "2662"]
[BlackElo "2608"]
[Result "1/2-1/2"]
[Round "05"]
[TimeControl "180+1"]
[Date "2022.04.12"]
[WhiteClock "0:00:57"]
[BlackClock "0:01:16"]

1. e4 {[%clk 0:03:00]}  c5 {[%clk 0:02:51]} 2. Nf3 {[%clk 0:03:01]}  d6 {[%clk 0:02:51]} 3. d4 {[%clk 0:03:01]}  cxd4 {[%clk 0:02:52]} 4. Qxd4 {[%clk 0:03:02]}  a6 {[%clk 0:02:51]} 5. Bc4 {[%clk 0:03:02]}  Nc6 {[%clk 0:02:50]} 6. Qd3 {[%clk 0:03:01]}  Nf6 {[%clk 0:02:41]} 7. Nc3 {[%clk 0:03:01]}  Bg4 {[%clk 0:02:38]} 8. Bb3 {[%clk 0:02:59]}  e6 {[%clk 0:02:34]} 9. Bf4 {[%clk 0:02:55]}  Qa5 {[%clk 0:02:27]} 10. O-O {[%clk 0:02:45]}  Be7 {[%clk 0:02:22]} 11. h3 {[%clk 0:02:43]}  Bh5 {[%clk 0:02:22]} 12. Nd2 {[%clk 0:02:27]}  Ne5 {[%clk 0:02:15]} 13. Qg3 {[%clk 0:02:27]}  O-O {[%clk 0:02:08]} 14. Rfe1 {[%clk 0:02:20]}  Bg6 {[%clk 0:02:02]} 15. Bxe5 {[%clk 0:01:52]}  Qxe5 {[%clk 0:01:59]} 16. Qxe5 {[%clk 0:01:49]}  dxe5 {[%clk 0:02:00]} 17. Nc4 {[%clk 0:01:49]}  Bb4 {[%clk 0:01:46]} 18. f3 {[%clk 0:01:29]}  Rac8 {[%clk 0:01:30]} 19. Nxe5 {[%clk 0:01:14]}  Rxc3 {[%clk 0:01:31]} 20. bxc3 {[%clk 0:01:11]}  Bxc3 {[%clk 0:01:32]} 21. Nd3 {[%clk 0:01:05]}  Rc8 {[%clk 0:01:26]} 22. Rab1 {[%clk 0:00:56]}  Bxe1 {[%clk 0:01:26]} 23. Rxe1 {[%clk 0:00:57]}  Kf8 {[%clk 0:01:16]} 24. Kf2 {[%clk 0:00:57]} 1/2-1/2


[Site "https://www.chess.com"]

[Event "Titled Tuesday Blitz April 12 Late 2022"]
[White "Zhou, Qiyu"]
[Black "Ambartsumova, Karina"]
[WhiteFideId "505161"]
[BlackFideId "4166299"]
[WhiteElo "1925"]
[BlackElo "2262"]
[Result "0-1"]
[Round "05"]
[TimeControl "180+1"]
[Date "2022.04.13"]
[WhiteClock "0:00:09"]
[BlackClock "0:00:18"]

1. e4 {[%clk 0:03:00]}  e5 {[%clk 0:02:59]} 2. Nf3 {[%clk 0:03:00]}  Nc6 {[%clk 0:02:59]} 3. Bb5 {[%clk 0:03:01]}  a6 {[%clk 0:02:59]} 4. Ba4 {[%clk 0:03:01]}  Nf6 {[%clk 0:03:00]} 5. O-O {[%clk 0:03:00]}  Be7 {[%clk 0:03:00]} 6. Re1 {[%clk 0:03:00]}  b5 {[%clk 0:02:59]} 7. Bb3 {[%clk 0:02:59]}  O-O {[%clk 0:03:00]} 8. h3 {[%clk 0:02:54]}  Bb7 {[%clk 0:02:55]} 9. c3 {[%clk 0:02:53]}  d5 {[%clk 0:02:50]} 10. d3 {[%clk 0:02:50]}  Qd7 {[%clk 0:02:28]} 11. Qe2 {[%clk 0:02:49]}  Rfe8 {[%clk 0:02:23]} 12. Nbd2 {[%clk 0:02:45]}  Bf8 {[%clk 0:02:22]} 13. Nf1 {[%clk 0:02:43]}  h6 {[%clk 0:02:22]} 14. Ng3 {[%clk 0:02:43]}  g6 {[%clk 0:02:15]} 15. Be3 {[%clk 0:02:36]}  Na5 {[%clk 0:02:09]} 16. Bc2 {[%clk 0:02:36]}  c5 {[%clk 0:02:09]} 17. Rad1 {[%clk 0:02:28]}  Nc6 {[%clk 0:02:08]} 18. Nh2 {[%clk 0:02:20]}  d4 {[%clk 0:02:01]} 19. Bc1 {[%clk 0:02:19]}  dxc3 {[%clk 0:01:57]} 20. bxc3 {[%clk 0:02:20]}  b4 {[%clk 0:01:58]} 21. Bb2 {[%clk 0:02:06]}  bxc3 {[%clk 0:01:52]} 22. Bxc3 {[%clk 0:02:07]}  Nd4 {[%clk 0:01:46]} 23. Bxd4 {[%clk 0:02:05]}  cxd4 {[%clk 0:01:46]} 24. Rb1 {[%clk 0:01:56]}  a5 {[%clk 0:01:44]} 25. Rec1 {[%clk 0:01:39]}  a4 {[%clk 0:01:42]} 26. Nf3 {[%clk 0:01:31]}  Bc6 {[%clk 0:01:32]} 27. Nd2 {[%clk 0:01:31]}  Bd6 {[%clk 0:01:17]} 28. Nc4 {[%clk 0:01:31]}  Bc7 {[%clk 0:01:17]} 29. Qd2 {[%clk 0:01:27]}  Kg7 {[%clk 0:01:10]} 30. Ne2 {[%clk 0:01:18]}  Reb8 {[%clk 0:01:08]} 31. Rxb8 {[%clk 0:01:02]}  Rxb8 {[%clk 0:01:08]} 32. Rb1 {[%clk 0:01:02]}  Rxb1+ {[%clk 0:00:56]} 33. Bxb1 {[%clk 0:01:03]}  Qe7 {[%clk 0:00:54]} 34. Qb2 {[%clk 0:00:56]}  Qc5 {[%clk 0:00:54]} 35. Nd2 {[%clk 0:00:49]}  a3 {[%clk 0:00:50]} 36. Qc2 {[%clk 0:00:46]}  Qb6 {[%clk 0:00:42]} 37. Nc4 {[%clk 0:00:44]}  Qb4 {[%clk 0:00:40]} 38. Kh2 {[%clk 0:00:35]}  Bd6 {[%clk 0:00:26]} 39. Nxd6 {[%clk 0:00:29]}  Qxd6 {[%clk 0:00:26]} 40. Qb3 {[%clk 0:00:28]}  Qc5 {[%clk 0:00:23]} 41. Bc2 {[%clk 0:00:23]}  Bd7 {[%clk 0:00:22]} 42. g3 {[%clk 0:00:17]}  Be6 {[%clk 0:00:22]} 43. Qb1 {[%clk 0:00:16]}  Nd7 {[%clk 0:00:20]} 44. Bb3 {[%clk 0:00:16]}  Qb4 {[%clk 0:00:17]} 45. Nc1 {[%clk 0:00:15]}  Nc5 {[%clk 0:00:17]} 46. Qc2 {[%clk 0:00:14]}  Bxb3 {[%clk 0:00:17]} 47. Nxb3 {[%clk 0:00:15]}  Nxb3 {[%clk 0:00:17]} 48. axb3 {[%clk 0:00:16]}  Qc3 {[%clk 0:00:17]} 49. Qb1 {[%clk 0:00:09]}  Qb2 {[%clk 0:00:18]} 0-1


[Site "https://www.chess.com"]

[Event "Titled Tuesday Blitz April 12 Late 2022"]
[White "Alekseenko, Kirill"]
[Black "Caruana, Fabiano"]
[WhiteFideId "4135539"]
[BlackFideId "2020009"]
[WhiteElo "2682"]
[BlackElo "2744"]
[Result "0-1"]
[Round "06"]
[TimeControl "180+1"]
[Date "2022.04.12"]
[WhiteClock "0:00:07"]
[BlackClock "0:00:29"]

1. e4 {[%clk 0:02:56]}  c5 {[%clk 0:03:00]} 2. Nf3 {[%clk 0:02:56]}  e6 {[%clk 0:03:00]} 3. d4 {[%clk 0:02:57]}  cxd4 {[%clk 0:03:01]} 4. Nxd4 {[%clk 0:02:58]}  Nc6 {[%clk 0:03:01]} 5. Nc3 {[%clk 0:02:58]}  Qc7 {[%clk 0:03:01]} 6. Be2 {[%clk 0:02:56]}  a6 {[%clk 0:03:00]} 7. O-O {[%clk 0:02:55]}  Nf6 {[%clk 0:02:59]} 8. Be3 {[%clk 0:02:55]}  Be7 {[%clk 0:02:59]} 9. f4 {[%clk 0:02:54]}  d6 {[%clk 0:02:59]} 10. Qe1 {[%clk 0:02:51]}  O-O {[%clk 0:02:57]} 11. Qg3 {[%clk 0:02:50]}  Nxd4 {[%clk 0:02:57]} 12. Bxd4 {[%clk 0:02:51]}  b5 {[%clk 0:02:57]} 13. a3 {[%clk 0:02:51]}  Bb7 {[%clk 0:02:57]} 14. Kh1 {[%clk 0:02:47]}  Rad8 {[%clk 0:02:56]} 15. Rae1 {[%clk 0:02:45]}  Rfe8 {[%clk 0:02:54]} 16. Rd1 {[%clk 0:02:26]}  Rd7 {[%clk 0:02:48]} 17. Bf3 {[%clk 0:02:23]}  Qd8 {[%clk 0:02:18]} 18. Qf2 {[%clk 0:02:15]}  Bf8 {[%clk 0:02:12]} 19. Rfe1 {[%clk 0:01:51]}  e5 {[%clk 0:02:06]} 20. Be3 {[%clk 0:01:43]}  h6 {[%clk 0:02:02]} 21. f5 {[%clk 0:01:22]}  d5 {[%clk 0:01:32]} 22. exd5 {[%clk 0:01:21]}  Nxd5 {[%clk 0:01:32]} 23. Nxd5 {[%clk 0:01:17]}  Bxd5 {[%clk 0:01:33]} 24. Bxd5 {[%clk 0:00:48]}  Rxd5 {[%clk 0:01:31]} 25. Qf3 {[%clk 0:00:48]}  Rxd1 {[%clk 0:01:18]} 26. Rxd1 {[%clk 0:00:48]}  Qc8 {[%clk 0:01:18]} 27. Qe4 {[%clk 0:00:43]}  f6 {[%clk 0:01:10]} 28. h3 {[%clk 0:00:39]}  Rd8 {[%clk 0:00:59]} 29. Rxd8 {[%clk 0:00:34]}  Qxd8 {[%clk 0:00:59]} 30. c3 {[%clk 0:00:30]}  Qd1+ {[%clk 0:00:57]} 31. Kh2 {[%clk 0:00:30]}  Bd6 {[%clk 0:00:54]} 32. h4 {[%clk 0:00:27]}  h5 {[%clk 0:00:51]} 33. Qa8+ {[%clk 0:00:22]}  Kh7 {[%clk 0:00:51]} 34. Qe4 {[%clk 0:00:20]}  a5 {[%clk 0:00:50]} 35. Bf2 {[%clk 0:00:10]}  a4 {[%clk 0:00:48]} 36. Bg3 {[%clk 0:00:09]}  Bc5 {[%clk 0:00:30]} 37. Kh3 {[%clk 0:00:07]}  Qh1+ {[%clk 0:00:29]} 38. Bh2 {[%clk 0:00:07]}  Bg1 {[%clk 0:00:29]} 0-1


[Site "https://www.chess.com"]

[Event "Titled Tuesday Blitz April 12 Late 2022"]
[White "Bryakin, Mikhail"]
[Black "Begmuratov, Khumoyun"]
[WhiteFideId "4165314"]
[BlackFideId "14210207"]
[WhiteElo "2417"]
[BlackElo "1961"]
[Result "1/2-1/2"]
[Round "06"]
[TimeControl "180+1"]
[Date "2022.04.12"]
[WhiteClock "0:00:09"]
[BlackClock "0:00:05"]

1. e4 {[%clk 0:03:00]}  e5 {[%clk 0:02:55]} 2. d4 {[%clk 0:03:01]}  exd4 {[%clk 0:02:55]} 3. Qxd4 {[%clk 0:03:01]}  Nc6 {[%clk 0:02:55]} 4. Qd3 {[%clk 0:03:02]}  g6 {[%clk 0:02:53]} 5. Nc3 {[%clk 0:03:01]}  Bg7 {[%clk 0:02:53]} 6. a3 {[%clk 0:02:58]}  Nf6 {[%clk 0:02:50]} 7. Bd2 {[%clk 0:02:58]}  O-O {[%clk 0:02:49]} 8. O-O-O {[%clk 0:02:58]}  d6 {[%clk 0:02:48]} 9. f4 {[%clk 0:02:58]}  a6 {[%clk 0:02:46]} 10. h3 {[%clk 0:02:57]}  b5 {[%clk 0:02:46]} 11. Nd5 {[%clk 0:02:49]}  Re8 {[%clk 0:02:38]} 12. Nxf6+ {[%clk 0:02:42]}  Qxf6 {[%clk 0:02:38]} 13. c3 {[%clk 0:02:38]}  b4 {[%clk 0:02:36]} 14. axb4 {[%clk 0:02:34]}  Be6 {[%clk 0:02:10]} 15. Qc2 {[%clk 0:02:22]}  Reb8 {[%clk 0:01:27]} 16. Nf3 {[%clk 0:02:07]}  a5 {[%clk 0:01:14]} 17. b5 {[%clk 0:02:07]}  a4 {[%clk 0:01:11]} 18. c4 {[%clk 0:01:47]}  a3 {[%clk 0:00:56]} 19. Bc3 {[%clk 0:01:36]}  Qxf4+ {[%clk 0:00:55]} 20. Kb1 {[%clk 0:01:37]}  Bxc3 {[%clk 0:00:32]} 21. bxc3 {[%clk 0:01:35]}  Na5 {[%clk 0:00:31]} 22. Nd2 {[%clk 0:01:34]}  c6 {[%clk 0:00:22]} 23. Bd3 {[%clk 0:01:34]}  cxb5 {[%clk 0:00:22]} 24. cxb5 {[%clk 0:01:35]}  a2+ {[%clk 0:00:19]} 25. Ka1 {[%clk 0:01:35]}  Qe5 {[%clk 0:00:19]} 26. Qb2 {[%clk 0:01:23]}  Qc5 {[%clk 0:00:16]} 27. Qb4 {[%clk 0:01:11]}  Qc7 {[%clk 0:00:14]} 28. c4 {[%clk 0:01:10]}  Qb6 {[%clk 0:00:11]} 29. Nf3 {[%clk 0:01:01]}  Qc5 {[%clk 0:00:09]} 30. Qxc5 {[%clk 0:00:54]}  Nb3+ {[%clk 0:00:06]} 31. Kb2 {[%clk 0:00:54]}  Nxc5 {[%clk 0:00:07]} 32. Be2 {[%clk 0:00:49]}  Na4+ {[%clk 0:00:06]} 33. Kc2 {[%clk 0:00:44]}  Rc8 {[%clk 0:00:04]} 34. Nd2 {[%clk 0:00:43]}  Nb6 {[%clk 0:00:04]} 35. Kb3 {[%clk 0:00:44]}  Rc5 {[%clk 0:00:04]} 36. Ra1 {[%clk 0:00:42]}  Rxb5+ {[%clk 0:00:04]} 37. Kc3 {[%clk 0:00:42]}  Ra3+ {[%clk 0:00:03]} 38. Kd4 {[%clk 0:00:41]}  Rc5 {[%clk 0:00:04]} 39. Rhc1 {[%clk 0:00:37]}  Nc8 {[%clk 0:00:03]} 40. Rc3 {[%clk 0:00:37]}  Ra7 {[%clk 0:00:03]} 41. Rc2 {[%clk 0:00:37]}  Ne7 {[%clk 0:00:03]} 42. Rcxa2 {[%clk 0:00:37]}  Nc6+ {[%clk 0:00:03]} 43. Kc3 {[%clk 0:00:37]}  Rc7 {[%clk 0:00:04]} 44. Nb3 {[%clk 0:00:29]}  Rg5 {[%clk 0:00:04]} 45. g4 {[%clk 0:00:26]}  Ne5 {[%clk 0:00:04]} 46. Nd2 {[%clk 0:00:24]}  h5 {[%clk 0:00:03]} 47. h4 {[%clk 0:00:24]}  Rxg4 {[%clk 0:00:03]} 48. Bxg4 {[%clk 0:00:24]}  hxg4 {[%clk 0:00:04]} 49. Ra4 {[%clk 0:00:24]}  f5 {[%clk 0:00:03]} 50. exf5 {[%clk 0:00:24]}  gxf5 {[%clk 0:00:04]} 51. Rf1 {[%clk 0:00:22]}  g3 {[%clk 0:00:04]} 52. Kd4 {[%clk 0:00:19]}  Rg7 {[%clk 0:00:04]} 53. Ke3 {[%clk 0:00:12]}  f4+ {[%clk 0:00:03]} 54. Kxf4 {[%clk 0:00:03]}  Nd3+ {[%clk 0:00:03]} 55. Ke3 {[%clk 0:00:03]}  Bh3 {[%clk 0:00:03]} 56. Rg1 {[%clk 0:00:02]}  Nc5 {[%clk 0:00:04]} 57. Ne4 {[%clk 0:00:03]}  Nxa4 {[%clk 0:00:04]} 58. Rxg3 {[%clk 0:00:03]}  Bg4 {[%clk 0:00:04]} 59. Kf4 {[%clk 0:00:03]}  Be6 {[%clk 0:00:04]} 60. Rxg7+ {[%clk 0:00:03]}  Kxg7 {[%clk 0:00:04]} 61. Nxd6 {[%clk 0:00:04]}  Nc5 {[%clk 0:00:05]} 62. Ke5 {[%clk 0:00:05]}  Bg8 {[%clk 0:00:05]} 63. Kd4 {[%clk 0:00:05]}  Ne6+ {[%clk 0:00:06]} 64. Ke5 {[%clk 0:00:05]}  Nc5 {[%clk 0:00:05]} 65. Kd4 {[%clk 0:00:06]}  Nd7 {[%clk 0:00:05]} 66. c5 {[%clk 0:00:06]}  Nb8 {[%clk 0:00:06]} 67. Nf5+ {[%clk 0:00:05]}  Kf6 {[%clk 0:00:06]} 68. Nd6 {[%clk 0:00:05]}  Nc6+ {[%clk 0:00:06]} 69. Ke4 {[%clk 0:00:05]}  Bh7+ {[%clk 0:00:05]} 70. Kf4 {[%clk 0:00:06]}  Ne7 {[%clk 0:00:05]} 71. Ne4+ {[%clk 0:00:06]}  Kg6 {[%clk 0:00:05]} 72. Ke5 {[%clk 0:00:05]}  Kg7 {[%clk 0:00:04]} 73. Nf6 {[%clk 0:00:05]}  Nc6+ {[%clk 0:00:02]} 74. Ke6 {[%clk 0:00:05]}  Bb1 {[%clk 0:00:02]} 75. Nd5 {[%clk 0:00:05]}  Ba2 {[%clk 0:00:02]} 76. Kd6 {[%clk 0:00:05]}  Bxd5 {[%clk 0:00:03]} 77. Kxd5 {[%clk 0:00:06]}  Nb4+ {[%clk 0:00:03]} 78. Kc4 {[%clk 0:00:06]}  Nc6 {[%clk 0:00:04]} 79. Kd5 {[%clk 0:00:07]}  Nb4+ {[%clk 0:00:04]} 80. Ke6 {[%clk 0:00:07]}  Kh6 {[%clk 0:00:04]} 81. Kd6 {[%clk 0:00:08]}  Kh5 {[%clk 0:00:04]} 82. c6 {[%clk 0:00:08]}  Nxc6 {[%clk 0:00:04]} 83. Kxc6 {[%clk 0:00:09]}  Kxh4 {[%clk 0:00:05]} 1/2-1/2


[Site "https://www.chess.com"]

[Event "Titled Tuesday Blitz April 12 Late 2022"]
[White "Cabarkapa, Novak"]
[Black "Przybylski, Wojciech"]
[WhiteFideId "943746"]
[BlackFideId "1117599"]
[WhiteElo "2665"]
[BlackElo "2449"]
[Result "1-0"]
[Round "06"]
[TimeControl "180+1"]
[Date "2022.04.13"]
[WhiteClock "0:00:33"]
[BlackClock "0:00:17"]

1. h4 {[%clk 0:03:00]}  e5 {[%clk 0:02:53]} 2. h5 {[%clk 0:03:01]}  d5 {[%clk 0:02:52]} 3. a4 {[%clk 0:03:00]}  c5 {[%clk 0:02:51]} 4. a5 {[%clk 0:03:01]}  Nc6 {[%clk 0:02:51]} 5. a6 {[%clk 0:03:01]}  bxa6 {[%clk 0:02:44]} 6. e4 {[%clk 0:03:01]}  dxe4 {[%clk 0:02:41]} 7. Bxa6 {[%clk 0:02:56]}  Nf6 {[%clk 0:02:40]} 8. Bb5 {[%clk 0:02:55]}  Bb7 {[%clk 0:02:39]} 9. h6 {[%clk 0:02:55]}  g6 {[%clk 0:02:28]} 10. Ra6 {[%clk 0:02:31]}  Qc7 {[%clk 0:02:24]} 11. Ra4 {[%clk 0:02:26]}  Be7 {[%clk 0:02:18]} 12. Nc3 {[%clk 0:02:21]}  a6 {[%clk 0:02:17]} 13. Bc4 {[%clk 0:02:15]}  Nd4 {[%clk 0:02:11]} 14. Nge2 {[%clk 0:02:06]}  O-O {[%clk 0:02:09]} 15. Ng3 {[%clk 0:02:06]}  Bc6 {[%clk 0:01:53]} 16. Rxa6 {[%clk 0:02:06]}  Qb7 {[%clk 0:01:43]} 17. Ra3 {[%clk 0:01:54]}  Qb4 {[%clk 0:01:29]} 18. Be2 {[%clk 0:01:44]}  c4 {[%clk 0:01:24]} 19. O-O {[%clk 0:01:41]}  Qb7 {[%clk 0:01:18]} 20. Bxc4 {[%clk 0:01:38]}  Bxa3 {[%clk 0:01:15]} 21. bxa3 {[%clk 0:01:37]}  Rac8 {[%clk 0:01:12]} 22. Ba2 {[%clk 0:01:30]}  Rfd8 {[%clk 0:01:09]} 23. a4 {[%clk 0:01:25]}  Qe7 {[%clk 0:00:52]} 24. Re1 {[%clk 0:01:16]}  Qf8 {[%clk 0:00:52]} 25. d3 {[%clk 0:01:09]}  exd3 {[%clk 0:00:46]} 26. cxd3 {[%clk 0:01:10]}  Qc5 {[%clk 0:00:34]} 27. Bd2 {[%clk 0:01:02]}  Bb7 {[%clk 0:00:33]} 28. a5 {[%clk 0:00:47]}  Nc6 {[%clk 0:00:28]} 29. Nce4 {[%clk 0:00:43]}  Nxe4 {[%clk 0:00:26]} 30. Nxe4 {[%clk 0:00:43]}  Qe7 {[%clk 0:00:25]} 31. Bg5 {[%clk 0:00:42]}  Qc7 {[%clk 0:00:21]} 32. Qf3 {[%clk 0:00:35]}  Rd6 {[%clk 0:00:18]} 33. Nxd6 {[%clk 0:00:32]}  Qxd6 {[%clk 0:00:18]} 34. Qxf7+ {[%clk 0:00:32]}  Kh8 {[%clk 0:00:17]} 35. Qg7# {[%clk 0:00:33]} 1-0


[Site "https://www.chess.com"]

[Event "Titled Tuesday Blitz April 12 Late 2022"]
[White "Dubov, Daniil"]
[Black "Svane, Frederik"]
[WhiteFideId "24126055"]
[BlackFideId "12923044"]
[WhiteElo "2791"]
[BlackElo "2459"]
[Result "1-0"]
[Round "06"]
[TimeControl "180+1"]
[Date "2022.04.12"]
[WhiteClock "0:00:59"]
[BlackClock "0:00:14"]

1. e4 {[%clk 0:03:00]}  c5 {[%clk 0:03:00]} 2. Nf3 {[%clk 0:03:00]}  e6 {[%clk 0:03:01]} 3. d4 {[%clk 0:02:59]}  cxd4 {[%clk 0:03:01]} 4. Nxd4 {[%clk 0:03:00]}  Nc6 {[%clk 0:03:02]} 5. Nc3 {[%clk 0:02:59]}  a6 {[%clk 0:03:02]} 6. g3 {[%clk 0:02:58]}  h5 {[%clk 0:02:59]} 7. Bg2 {[%clk 0:02:52]}  h4 {[%clk 0:02:59]} 8. Nxc6 {[%clk 0:02:51]}  bxc6 {[%clk 0:02:57]} 9. e5 {[%clk 0:02:51]}  Qa5 {[%clk 0:02:50]} 10. Qe2 {[%clk 0:02:46]}  Ne7 {[%clk 0:02:42]} 11. O-O {[%clk 0:02:36]}  Ng6 {[%clk 0:02:41]} 12. Re1 {[%clk 0:02:35]}  Rb8 {[%clk 0:02:31]} 13. Bd2 {[%clk 0:02:30]}  Qc7 {[%clk 0:02:27]} 14. b3 {[%clk 0:02:21]}  d5 {[%clk 0:02:21]} 15. exd6 {[%clk 0:02:20]}  Bxd6 {[%clk 0:02:22]} 16. Ne4 {[%clk 0:02:18]}  Be7 {[%clk 0:02:18]} 17. Rad1 {[%clk 0:02:17]}  c5 {[%clk 0:02:02]} 18. Bc3 {[%clk 0:02:09]}  O-O {[%clk 0:01:56]} 19. Nd2 {[%clk 0:01:50]}  Bb7 {[%clk 0:01:43]} 20. Nc4 {[%clk 0:01:49]}  Bxg2 {[%clk 0:01:43]} 21. Kxg2 {[%clk 0:01:48]}  Qc6+ {[%clk 0:01:44]} 22. Qe4 {[%clk 0:01:46]}  Qxe4+ {[%clk 0:01:37]} 23. Rxe4 {[%clk 0:01:45]}  Rfd8 {[%clk 0:01:37]} 24. Ne3 {[%clk 0:01:32]}  Rxd1 {[%clk 0:01:35]} 25. Nxd1 {[%clk 0:01:33]}  Rb6 {[%clk 0:01:18]} 26. Nb2 {[%clk 0:01:27]}  f6 {[%clk 0:01:16]} 27. Nd3 {[%clk 0:01:15]}  Kf7 {[%clk 0:01:08]} 28. Rc4 {[%clk 0:01:15]}  hxg3 {[%clk 0:01:06]} 29. hxg3 {[%clk 0:01:14]}  Rc6 {[%clk 0:01:00]} 30. Bd4 {[%clk 0:01:09]}  e5 {[%clk 0:00:44]} 31. Bxc5 {[%clk 0:01:09]}  e4 {[%clk 0:00:44]} 32. Rxe4 {[%clk 0:01:04]}  f5 {[%clk 0:00:14]} 33. Rxe7+ {[%clk 0:00:59]} 1-0


[Site "https://www.chess.com"]